[Event "Titled Tuesday Blitz June 8 2021"]
[White "Makhnev, Denis"]
[Black "Goltsev, Dmitry"]
[WhiteFideId "13707647"]
[BlackFideId "24176710"]
[WhiteElo "2549"]
[BlackElo "2366"]
[Result "1-0"]
[Round "05"]
[TimeControl "180+1"]
[Date "2021.06.08"]
[WhiteClock "0:00:28"]
[BlackClock "0:00:06"]

1. Nf3 {[%clk 0:03:00]}  d5 {[%clk 0:02:59]} 2. g3 {[%clk 0:02:59]}  c6 {[%clk 0:02:59]} 3. Bg2 {[%clk 0:02:59]}  Bg4 {[%clk 0:03:00]} 4. O-O {[%clk 0:02:58]}  Nd7 {[%clk 0:03:00]} 5. d4 {[%clk 0:02:58]}  Ngf6 {[%clk 0:03:00]} 6. Nbd2 {[%clk 0:02:56]}  e6 {[%clk 0:03:00]} 7. Re1 {[%clk 0:02:56]}  Bd6 {[%clk 0:02:58]} 8. e4 {[%clk 0:02:55]}  dxe4 {[%clk 0:02:59]} 9. Nxe4 {[%clk 0:02:56]}  Nxe4 {[%clk 0:03:00]} 10. Rxe4 {[%clk 0:02:56]}  Nf6 {[%clk 0:03:00]} 11. Re1 {[%clk 0:02:55]}  h5 {[%clk 0:03:00]} 12. h3 {[%clk 0:02:52]}  Bf5 {[%clk 0:02:58]} 13. c3 {[%clk 0:02:47]}  Qc7 {[%clk 0:02:49]} 14. Bg5 {[%clk 0:02:38]}  O-O-O {[%clk 0:02:43]} 15. Qe2 {[%clk 0:02:38]}  Rdg8 {[%clk 0:02:38]} 16. Nh4 {[%clk 0:02:37]}  Bh7 {[%clk 0:02:17]} 17. Rad1 {[%clk 0:02:32]}  Nd7 {[%clk 0:02:14]} 18. b4 {[%clk 0:02:18]}  f6 {[%clk 0:02:10]} 19. Bc1 {[%clk 0:02:17]}  g5 {[%clk 0:02:10]} 20. Nf3 {[%clk 0:02:17]}  Bf5 {[%clk 0:02:09]} 21. Nd2 {[%clk 0:02:11]}  Bc2 {[%clk 0:01:35]} 22. Qxe6 {[%clk 0:02:04]}  Bxd1 {[%clk 0:01:34]} 23. Rxd1 {[%clk 0:02:05]}  Re8 {[%clk 0:01:34]} 24. Qf5 {[%clk 0:02:04]}  Kb8 {[%clk 0:01:27]} 25. Ne4 {[%clk 0:02:03]}  h4 {[%clk 0:01:20]} 26. g4 {[%clk 0:01:59]}  Rhf8 {[%clk 0:01:17]} 27. a3 {[%clk 0:01:52]}  Nb6 {[%clk 0:01:16]} 28. Kf1 {[%clk 0:01:27]}  Bf4 {[%clk 0:00:57]} 29. Bxf4 {[%clk 0:01:23]}  Qxf4 {[%clk 0:00:57]} 30. Qxf4+ {[%clk 0:01:23]}  gxf4 {[%clk 0:00:58]} 31. Nc5 {[%clk 0:01:07]}  Re7 {[%clk 0:00:54]} 32. Nd3 {[%clk 0:01:05]}  Nc4 {[%clk 0:00:50]} 33. Nxf4 {[%clk 0:01:03]}  Rfe8 {[%clk 0:00:42]} 34. Bf3 {[%clk 0:00:55]}  Nxa3 {[%clk 0:00:40]} 35. Ng6 {[%clk 0:00:54]}  Rd7 {[%clk 0:00:28]} 36. Nxh4 {[%clk 0:00:53]}  Rh8 {[%clk 0:00:28]} 37. Nf5 {[%clk 0:00:46]}  Rxh3 {[%clk 0:00:28]} 38. Kg2 {[%clk 0:00:46]}  Rh8 {[%clk 0:00:28]} 39. Re1 {[%clk 0:00:44]}  Nb5 {[%clk 0:00:28]} 40. Re3 {[%clk 0:00:43]}  Nd6 {[%clk 0:00:27]} 41. Ng3 {[%clk 0:00:38]}  Kc7 {[%clk 0:00:26]} 42. Be2 {[%clk 0:00:35]}  b6 {[%clk 0:00:25]} 43. c4 {[%clk 0:00:30]}  a5 {[%clk 0:00:25]} 44. c5 {[%clk 0:00:29]}  Nb7 {[%clk 0:00:25]} 45. cxb6+ {[%clk 0:00:29]}  Kxb6 {[%clk 0:00:26]} 46. bxa5+ {[%clk 0:00:29]}  Nxa5 {[%clk 0:00:27]} 47. Nf5 {[%clk 0:00:30]}  Nb7 {[%clk 0:00:19]} 48. Re6 {[%clk 0:00:30]}  Rf8 {[%clk 0:00:18]} 49. Bf3 {[%clk 0:00:30]}  Nd8 {[%clk 0:00:18]} 50. Re3 {[%clk 0:00:30]}  Kc7 {[%clk 0:00:17]} 51. Rc3 {[%clk 0:00:29]}  Re8 {[%clk 0:00:17]} 52. d5 {[%clk 0:00:29]}  Re5 {[%clk 0:00:12]} 53. dxc6 {[%clk 0:00:29]}  Rd2 {[%clk 0:00:12]} 54. Ra3 {[%clk 0:00:28]}  Nxc6 {[%clk 0:00:06]} 55. Rc3 {[%clk 0:00:28]}  Re6 {[%clk 0:00:06]} 56. Ng7 {[%clk 0:00:23]}  Red6 {[%clk 0:00:05]} 57. Ne8+ {[%clk 0:00:23]}  Kd7 {[%clk 0:00:04]} 58. Nxd6 {[%clk 0:00:24]}  Rxd6 {[%clk 0:00:05]} 59. Rxc6 {[%clk 0:00:24]}  Rxc6 {[%clk 0:00:06]} 60. Bxc6+ {[%clk 0:00:25]}  Kxc6 {[%clk 0:00:07]} 61. Kf3 {[%clk 0:00:25]}  Kd6 {[%clk 0:00:07]} 62. Kf4 {[%clk 0:00:26]}  Ke6 {[%clk 0:00:08]} 63. Ke4 {[%clk 0:00:26]}  Ke7 {[%clk 0:00:06]} 64. Kf5 {[%clk 0:00:26]}  Kf7 {[%clk 0:00:07]} 65. g5 {[%clk 0:00:26]}  fxg5 {[%clk 0:00:07]} 66. Kxg5 {[%clk 0:00:27]}  Kg7 {[%clk 0:00:07]} 67. Kf5 {[%clk 0:00:27]}  Kf7 {[%clk 0:00:06]} 68. f4 {[%clk 0:00:27]}  Kg7 {[%clk 0:00:07]} 69. Ke6 {[%clk 0:00:27]}  Kf8 {[%clk 0:00:07]} 70. Kf6 {[%clk 0:00:27]}  Kg8 {[%clk 0:00:06]} 71. Ke7 {[%clk 0:00:28]} 1-0


[Site "https://www.chess.com"]

[Event "Titled Tuesday Blitz June 8 2021"]
[White "Morefield, Jason"]
[Black "Donchenko, Alexander"]
[WhiteFideId "30920825"]
[BlackFideId "24603295"]
[WhiteElo "2171"]
[BlackElo "2553"]
[Result "0-1"]
[Round "05"]
[TimeControl "180+1"]
[Date "2021.06.08"]
[WhiteClock "0:00:05"]
[BlackClock "0:00:09"]

1. d4 {[%clk 0:03:00]}  Nf6 {[%clk 0:02:58]} 2. c4 {[%clk 0:03:00]}  g6 {[%clk 0:02:58]} 3. Nc3 {[%clk 0:02:59]}  Bg7 {[%clk 0:02:58]} 4. e4 {[%clk 0:02:59]}  d6 {[%clk 0:02:59]} 5. Nf3 {[%clk 0:03:00]}  O-O {[%clk 0:02:59]} 6. Be2 {[%clk 0:03:00]}  Na6 {[%clk 0:02:59]} 7. Be3 {[%clk 0:03:00]}  e5 {[%clk 0:02:59]} 8. O-O {[%clk 0:02:48]}  Ng4 {[%clk 0:02:56]} 9. Bg5 {[%clk 0:02:48]}  f6 {[%clk 0:02:56]} 10. Bc1 {[%clk 0:02:49]}  Be6 {[%clk 0:02:52]} 11. h3 {[%clk 0:02:40]}  Nh6 {[%clk 0:02:52]} 12. c5 {[%clk 0:02:31]}  Nf7 {[%clk 0:02:44]} 13. d5 {[%clk 0:02:18]}  Bc8 {[%clk 0:02:38]} 14. Bxa6 {[%clk 0:02:12]}  bxa6 {[%clk 0:02:38]} 15. c6 {[%clk 0:02:13]}  f5 {[%clk 0:02:36]} 16. exf5 {[%clk 0:02:11]}  gxf5 {[%clk 0:02:35]} 17. Nd2 {[%clk 0:02:02]}  Kh8 {[%clk 0:02:33]} 18. Nc4 {[%clk 0:01:49]}  Rg8 {[%clk 0:02:31]} 19. Kh1 {[%clk 0:01:48]}  Qh4 {[%clk 0:02:29]} 20. f4 {[%clk 0:01:45]}  e4 {[%clk 0:02:19]} 21. Be3 {[%clk 0:01:35]}  a5 {[%clk 0:02:10]} 22. Nxa5 {[%clk 0:01:26]}  Ba6 {[%clk 0:02:10]} 23. Rf2 {[%clk 0:01:26]}  Nh6 {[%clk 0:01:52]} 24. Kg1 {[%clk 0:01:13]}  Raf8 {[%clk 0:01:30]} 25. Bd4 {[%clk 0:01:08]}  Bf6 {[%clk 0:01:25]} 26. Bxf6+ {[%clk 0:01:06]}  Rxf6 {[%clk 0:01:25]} 27. Qd4 {[%clk 0:01:03]}  Rg6 {[%clk 0:01:24]} 28. Re1 {[%clk 0:00:50]}  Kg8 {[%clk 0:01:22]} 29. Re3 {[%clk 0:00:49]}  Bd3 {[%clk 0:01:00]} 30. Qxa7 {[%clk 0:00:47]}  Rg3 {[%clk 0:00:58]} 31. Rxg3+ {[%clk 0:00:34]}  Qxg3 {[%clk 0:00:59]} 32. Qb8+ {[%clk 0:00:34]}  Rf8 {[%clk 0:00:49]} 33. Qxc7 {[%clk 0:00:34]}  e3 {[%clk 0:00:48]} 34. Rf3 {[%clk 0:00:34]}  Qe1+ {[%clk 0:00:38]} 35. Kh2 {[%clk 0:00:34]}  e2 {[%clk 0:00:39]} 36. Nxe2 {[%clk 0:00:28]}  Bxe2 {[%clk 0:00:39]} 37. Qe7 {[%clk 0:00:20]}  Rf7 {[%clk 0:00:29]} 38. Qe8+ {[%clk 0:00:20]}  Kg7 {[%clk 0:00:28]} 39. Re3 {[%clk 0:00:16]}  Qxa5 {[%clk 0:00:15]} 40. Rxe2 {[%clk 0:00:16]}  Qxd5 {[%clk 0:00:15]} 41. Rc2 {[%clk 0:00:14]}  Rc7 {[%clk 0:00:12]} 42. b4 {[%clk 0:00:13]}  Qd4 {[%clk 0:00:10]} 43. g3 {[%clk 0:00:05]}  Qxb4 {[%clk 0:00:09]} 44. Qe5+ {[%clk 0:00:05]}  dxe5 {[%clk 0:00:09]} 0-1


[Site "https://www.chess.com"]

[Event "Titled Tuesday Blitz June 8 2021"]
[White "Mortazavi, Ali"]
[Black "Shahaliyev, Ismayil"]
[WhiteFideId "401323"]
[BlackFideId "13406388"]
[WhiteElo "2339"]
[BlackElo "2105"]
[Result "0-1"]
[Round "05"]
[TimeControl "180+1"]
[Date "2021.06.08"]
[WhiteClock "0:00:52"]
[BlackClock "0:01:32"]

1. Nf3 {[%clk 0:03:00]}  b6 {[%clk 0:02:51]} 2. g3 {[%clk 0:03:00]}  Bb7 {[%clk 0:02:52]} 3. Bg2 {[%clk 0:03:01]}  Nf6 {[%clk 0:02:52]} 4. O-O {[%clk 0:03:01]}  g6 {[%clk 0:02:52]} 5. d3 {[%clk 0:03:01]}  Bg7 {[%clk 0:02:52]} 6. e4 {[%clk 0:03:01]}  O-O {[%clk 0:02:52]} 7. a4 {[%clk 0:03:02]}  a6 {[%clk 0:02:52]} 8. Nc3 {[%clk 0:03:02]}  d6 {[%clk 0:02:45]} 9. Re1 {[%clk 0:02:54]}  c5 {[%clk 0:02:45]} 10. e5 {[%clk 0:02:46]}  dxe5 {[%clk 0:02:46]} 11. Nxe5 {[%clk 0:02:46]}  Bxg2 {[%clk 0:02:46]} 12. Kxg2 {[%clk 0:02:47]}  Nfd7 {[%clk 0:02:37]} 13. Nc4 {[%clk 0:02:30]}  Nc6 {[%clk 0:02:32]} 14. Bg5 {[%clk 0:02:19]}  h6 {[%clk 0:02:28]} 15. Be3 {[%clk 0:02:19]}  e6 {[%clk 0:02:27]} 16. Qd2 {[%clk 0:02:14]}  Kh7 {[%clk 0:02:27]} 17. h4 {[%clk 0:02:06]}  Nf6 {[%clk 0:02:02]} 18. a5 {[%clk 0:02:01]}  b5 {[%clk 0:01:46]} 19. Nb6 {[%clk 0:02:01]}  Nd4 {[%clk 0:01:47]} 20. Bxd4 {[%clk 0:01:51]}  cxd4 {[%clk 0:01:48]} 21. Ne4 {[%clk 0:01:50]}  Nxe4 {[%clk 0:01:44]} 22. dxe4 {[%clk 0:01:47]}  Ra7 {[%clk 0:01:43]} 23. e5 {[%clk 0:01:42]}  f6 {[%clk 0:01:37]} 24. exf6 {[%clk 0:01:39]}  Qxf6 {[%clk 0:01:38]} 25. Ra3 {[%clk 0:01:32]}  Raf7 {[%clk 0:01:37]} 26. Re2 {[%clk 0:01:21]}  e5 {[%clk 0:01:36]} 27. Qd3 {[%clk 0:01:15]}  Qc6+ {[%clk 0:01:37]} 28. Kg1 {[%clk 0:01:06]}  Rf3 {[%clk 0:01:33]} 29. Qe4 {[%clk 0:01:00]}  Qxe4 {[%clk 0:01:33]} 30. Rxe4 {[%clk 0:01:00]}  Rxf2 {[%clk 0:01:34]} 31. Nd7 {[%clk 0:00:53]}  Rf1+ {[%clk 0:01:34]} 32. Kg2 {[%clk 0:00:53]}  R8f2+ {[%clk 0:01:34]} 33. Kh3 {[%clk 0:00:53]}  Rh1+ {[%clk 0:01:31]} 34. Kg4 {[%clk 0:00:53]}  h5+ {[%clk 0:01:32]} 35. Kg5 {[%clk 0:00:52]}  Rf5# {[%clk 0:01:32]} 0-1


[Site "https://www.chess.com"]

[Event "Titled Tuesday Blitz June 8 2021"]
[White "Murzin, Volodar"]
[Black "Nguyen, Quoc Hy"]
[WhiteFideId "44155573"]
[BlackFideId "12410853"]
[WhiteElo "2541"]
[BlackElo "1975"]
[Result "1-0"]
[Round "05"]
[TimeControl "180+1"]
[Date "2021.06.08"]
[WhiteClock "0:00:04"]
[BlackClock "0:00:18"]

1. e4 {[%clk 0:03:00]}  c5 {[%clk 0:02:59]} 2. Nf3 {[%clk 0:03:00]}  d6 {[%clk 0:02:56]} 3. d4 {[%clk 0:02:59]}  cxd4 {[%clk 0:02:56]} 4. Qxd4 {[%clk 0:03:00]}  a6 {[%clk 0:02:55]} 5. Be2 {[%clk 0:02:59]}  Nc6 {[%clk 0:02:55]} 6. Qe3 {[%clk 0:02:59]}  g6 {[%clk 0:02:54]} 7. O-O {[%clk 0:02:59]}  Bg7 {[%clk 0:02:55]} 8. Rd1 {[%clk 0:02:59]}  Nf6 {[%clk 0:02:55]} 9. Nc3 {[%clk 0:02:59]}  O-O {[%clk 0:02:54]} 10. Nd5 {[%clk 0:02:58]}  Nxd5 {[%clk 0:02:44]} 11. exd5 {[%clk 0:02:58]}  Ne5 {[%clk 0:02:44]} 12. Nxe5 {[%clk 0:02:57]}  Bxe5 {[%clk 0:02:45]} 13. Qb3 {[%clk 0:02:44]}  Bf5 {[%clk 0:02:23]} 14. Be3 {[%clk 0:02:41]}  b5 {[%clk 0:01:59]} 15. c3 {[%clk 0:02:39]}  Rb8 {[%clk 0:01:56]} 16. Rd2 {[%clk 0:02:37]}  Qc7 {[%clk 0:01:53]} 17. a4 {[%clk 0:02:36]}  Bd7 {[%clk 0:01:47]} 18. axb5 {[%clk 0:02:32]}  Bxb5 {[%clk 0:01:37]} 19. Bxb5 {[%clk 0:02:28]}  Rxb5 {[%clk 0:01:37]} 20. Qa2 {[%clk 0:01:55]}  Rfb8 {[%clk 0:01:32]} 21. g3 {[%clk 0:01:51]}  Qb7 {[%clk 0:01:25]} 22. Qxa6 {[%clk 0:01:45]}  Qxa6 {[%clk 0:01:22]} 23. Rxa6 {[%clk 0:01:46]}  Rxb2 {[%clk 0:01:20]} 24. Rxb2 {[%clk 0:01:43]}  Rxb2 {[%clk 0:01:20]} 25. Bh6 {[%clk 0:01:34]}  Rb8 {[%clk 0:01:17]} 26. c4 {[%clk 0:01:29]}  Bg7 {[%clk 0:01:17]} 27. Bg5 {[%clk 0:01:26]}  Kf8 {[%clk 0:01:17]} 28. Ra7 {[%clk 0:01:24]}  Re8 {[%clk 0:01:16]} 29. Kg2 {[%clk 0:01:22]}  h6 {[%clk 0:01:16]} 30. Be3 {[%clk 0:01:17]}  Rc8 {[%clk 0:01:16]} 31. Kf3 {[%clk 0:00:42]}  g5 {[%clk 0:01:15]} 32. Ke2 {[%clk 0:00:41]}  Bf6 {[%clk 0:01:14]} 33. Kd3 {[%clk 0:00:41]}  Kg7 {[%clk 0:01:08]} 34. Rb7 {[%clk 0:00:29]}  Kg6 {[%clk 0:01:02]} 35. Bd4 {[%clk 0:00:17]}  Bxd4 {[%clk 0:00:59]} 36. Kxd4 {[%clk 0:00:18]}  Kf6 {[%clk 0:01:00]} 37. Rb6 {[%clk 0:00:17]}  Kf5 {[%clk 0:00:58]} 38. f3 {[%clk 0:00:16]}  Ra8 {[%clk 0:00:57]} 39. Rb7 {[%clk 0:00:16]}  Kf6 {[%clk 0:00:56]} 40. Rb2 {[%clk 0:00:15]}  Ra3 {[%clk 0:00:55]} 41. Rf2 {[%clk 0:00:15]}  Kf5 {[%clk 0:00:54]} 42. f4 {[%clk 0:00:16]}  g4 {[%clk 0:00:51]} 43. Re2 {[%clk 0:00:16]}  Kf6 {[%clk 0:00:51]} 44. Ke4 {[%clk 0:00:12]}  Rc3 {[%clk 0:00:48]} 45. Kd4 {[%clk 0:00:13]}  Rc1 {[%clk 0:00:48]} 46. Kd3 {[%clk 0:00:13]}  h5 {[%clk 0:00:48]} 47. Rc2 {[%clk 0:00:13]}  Rg1 {[%clk 0:00:46]} 48. Ke3 {[%clk 0:00:13]}  Rf1 {[%clk 0:00:46]} 49. Ke2 {[%clk 0:00:12]}  Rf3 {[%clk 0:00:45]} 50. c5 {[%clk 0:00:12]}  dxc5 {[%clk 0:00:44]} 51. Rxc5 {[%clk 0:00:13]}  h4 {[%clk 0:00:43]} 52. Rc6+ {[%clk 0:00:11]}  Kf5 {[%clk 0:00:42]} 53. gxh4 {[%clk 0:00:10]}  Rh3 {[%clk 0:00:42]} 54. Rc7 {[%clk 0:00:09]}  Rxh2+ {[%clk 0:00:38]} 55. Ke3 {[%clk 0:00:05]}  Rh3+ {[%clk 0:00:39]} 56. Kf2 {[%clk 0:00:05]}  Kxf4 {[%clk 0:00:36]} 57. Rxe7 {[%clk 0:00:05]}  f5 {[%clk 0:00:36]} 58. d6 {[%clk 0:00:05]}  Rh2+ {[%clk 0:00:35]} 59. Ke1 {[%clk 0:00:05]}  Rh1+ {[%clk 0:00:33]} 60. Ke2 {[%clk 0:00:05]}  Rh2+ {[%clk 0:00:31]} 61. Kd3 {[%clk 0:00:05]}  Rh1 {[%clk 0:00:30]} 62. Kd2 {[%clk 0:00:05]}  Rh2+ {[%clk 0:00:31]} 63. Re2 {[%clk 0:00:03]}  g3 {[%clk 0:00:27]} 64. d7 {[%clk 0:00:03]}  Rxe2+ {[%clk 0:00:19]} 65. Kxe2 {[%clk 0:00:03]}  g2 {[%clk 0:00:18]} 66. Kf2 {[%clk 0:00:04]} 1-0


[Site "https://www.chess.com"]

[Event "Titled Tuesday Blitz June 8 2021"]
[White "Narayanan.S.L"]
[Black "Bacrot, Etienne"]
[WhiteFideId "5058422"]
[BlackFideId "605506"]
[WhiteElo "2617"]
[BlackElo "2673"]
[Result "1-0"]
[Round "05"]
[TimeControl "180+1"]
[Date "2021.06.08"]
[WhiteClock "0:00:25"]
[BlackClock "0:00:09"]

1. e4 {[%clk 0:02:51]}  c5 {[%clk 0:02:59]} 2. Nf3 {[%clk 0:02:50]}  d6 {[%clk 0:02:59]} 3. Bb5+ {[%clk 0:02:50]}  Nd7 {[%clk 0:02:57]} 4. O-O {[%clk 0:02:51]}  Nf6 {[%clk 0:02:56]} 5. d4 {[%clk 0:02:49]}  cxd4 {[%clk 0:02:56]} 6. Qxd4 {[%clk 0:02:49]}  a6 {[%clk 0:02:55]} 7. Bxd7+ {[%clk 0:02:48]}  Bxd7 {[%clk 0:02:55]} 8. c4 {[%clk 0:02:48]}  g6 {[%clk 0:02:53]} 9. Nc3 {[%clk 0:02:34]}  Bg7 {[%clk 0:02:53]} 10. Qd3 {[%clk 0:02:33]}  Rc8 {[%clk 0:02:50]} 11. Bg5 {[%clk 0:02:27]}  O-O {[%clk 0:02:45]} 12. Rfe1 {[%clk 0:02:24]}  h6 {[%clk 0:02:17]} 13. Bd2 {[%clk 0:02:22]}  Bg4 {[%clk 0:01:47]} 14. Nd4 {[%clk 0:01:51]}  Nd7 {[%clk 0:01:41]} 15. b3 {[%clk 0:01:51]}  Nc5 {[%clk 0:01:17]} 16. Qe3 {[%clk 0:01:51]}  e5 {[%clk 0:01:07]} 17. Nc2 {[%clk 0:01:30]}  f5 {[%clk 0:01:06]} 18. f3 {[%clk 0:01:30]}  Bh5 {[%clk 0:01:05]} 19. Nb4 {[%clk 0:01:25]}  g5 {[%clk 0:01:00]} 20. Nbd5 {[%clk 0:01:24]}  g4 {[%clk 0:01:00]} 21. fxg4 {[%clk 0:01:15]}  Bxg4 {[%clk 0:01:00]} 22. exf5 {[%clk 0:01:12]}  Bxf5 {[%clk 0:00:55]} 23. Rf1 {[%clk 0:01:12]}  Ne6 {[%clk 0:00:42]} 24. Rf2 {[%clk 0:00:37]}  Nd4 {[%clk 0:00:29]} 25. Raf1 {[%clk 0:00:36]}  Qd7 {[%clk 0:00:29]} 26. Ne2 {[%clk 0:00:27]}  Nxe2+ {[%clk 0:00:21]} 27. Qxe2 {[%clk 0:00:28]}  Rce8 {[%clk 0:00:20]} 28. Qh5 {[%clk 0:00:26]}  Bd3 {[%clk 0:00:17]} 29. Rxf8+ {[%clk 0:00:25]}  Rxf8 {[%clk 0:00:17]} 30. Rxf8+ {[%clk 0:00:25]}  Kxf8 {[%clk 0:00:18]} 31. Bxh6 {[%clk 0:00:25]}  Qf5 {[%clk 0:00:09]} 32. Bxg7+ {[%clk 0:00:25]}  Kxg7 {[%clk 0:00:09]} 33. Qxf5 {[%clk 0:00:24]}  Bxf5 {[%clk 0:00:08]} 34. Kf2 {[%clk 0:00:25]}  Bb1 {[%clk 0:00:08]} 35. Nc3 {[%clk 0:00:25]}  Bc2 {[%clk 0:00:09]} 36. g4 {[%clk 0:00:25]}  Kf6 {[%clk 0:00:09]} 37. h4 {[%clk 0:00:25]} 1-0


[Site "https://www.chess.com"]

[Event "Titled Tuesday Blitz June 8 2021"]
[White "Nouri, Alekhine"]
[Black "Willow, Jonah B"]
[WhiteFideId "5216184"]
[BlackFideId "438804"]
[WhiteElo "1894"]
[BlackElo "2261"]
[Result "0-1"]
[Round "05"]
[TimeControl "180+1"]
[Date "2021.06.08"]
[WhiteClock "0:00:37"]
[BlackClock "0:00:18"]

1. e4 {[%clk 0:03:00]}  c5 {[%clk 0:03:00]} 2. Nc3 {[%clk 0:03:00]}  Nc6 {[%clk 0:03:00]} 3. Bb5 {[%clk 0:02:58]}  Nd4 {[%clk 0:03:00]} 4. Nf3 {[%clk 0:02:57]}  e6 {[%clk 0:02:57]} 5. Nxd4 {[%clk 0:02:55]}  cxd4 {[%clk 0:02:58]} 6. Ne2 {[%clk 0:02:56]}  Nf6 {[%clk 0:02:57]} 7. f3 {[%clk 0:02:49]}  Bc5 {[%clk 0:02:52]} 8. Ba4 {[%clk 0:02:41]}  O-O {[%clk 0:02:50]} 9. Bb3 {[%clk 0:02:38]}  d5 {[%clk 0:02:50]} 10. d3 {[%clk 0:02:37]}  dxe4 {[%clk 0:02:42]} 11. fxe4 {[%clk 0:02:37]}  Ng4 {[%clk 0:02:37]} 12. O-O {[%clk 0:02:34]}  Qh4 {[%clk 0:02:34]} 13. Bf4 {[%clk 0:02:33]}  e5 {[%clk 0:02:30]} 14. Bg3 {[%clk 0:02:32]}  Qh6 {[%clk 0:02:29]} 15. Qc1 {[%clk 0:02:29]}  Ne3 {[%clk 0:02:27]} 16. Rf2 {[%clk 0:02:28]}  Be6 {[%clk 0:02:26]} 17. c3 {[%clk 0:02:26]}  dxc3 {[%clk 0:02:18]} 18. bxc3 {[%clk 0:02:24]}  Ng4 {[%clk 0:02:16]} 19. d4 {[%clk 0:02:23]}  Qxc1+ {[%clk 0:02:12]} 20. Rxc1 {[%clk 0:02:23]}  Nxf2 {[%clk 0:02:13]} 21. Bxf2 {[%clk 0:02:22]}  Ba3 {[%clk 0:02:09]} 22. Rd1 {[%clk 0:02:19]}  Bxb3 {[%clk 0:02:08]} 23. axb3 {[%clk 0:02:20]}  Rac8 {[%clk 0:02:08]} 24. d5 {[%clk 0:02:17]}  Bc5 {[%clk 0:02:00]} 25. Bxc5 {[%clk 0:02:15]}  Rxc5 {[%clk 0:02:01]} 26. Ra1 {[%clk 0:02:06]}  a5 {[%clk 0:02:00]} 27. g4 {[%clk 0:02:03]}  h5 {[%clk 0:01:57]} 28. h3 {[%clk 0:02:02]}  hxg4 {[%clk 0:01:57]} 29. hxg4 {[%clk 0:02:03]}  g6 {[%clk 0:01:51]} 30. Kf2 {[%clk 0:02:03]}  f5 {[%clk 0:01:49]} 31. gxf5 {[%clk 0:02:04]}  gxf5 {[%clk 0:01:49]} 32. Ke3 {[%clk 0:02:04]}  f4+ {[%clk 0:01:42]} 33. Kf3 {[%clk 0:02:02]}  Rf6 {[%clk 0:01:42]} 34. Rg1+ {[%clk 0:02:00]}  Kf8 {[%clk 0:01:42]} 35. Rg5 {[%clk 0:02:00]}  Rb6 {[%clk 0:01:36]} 36. b4 {[%clk 0:01:55]}  axb4 {[%clk 0:01:24]} 37. cxb4 {[%clk 0:01:56]}  Rxb4 {[%clk 0:01:18]} 38. Rxe5 {[%clk 0:01:55]}  Rb1 {[%clk 0:01:15]} 39. Rf5+ {[%clk 0:01:47]}  Ke8 {[%clk 0:01:14]} 40. Kxf4 {[%clk 0:01:44]}  Rf1+ {[%clk 0:01:05]} 41. Ke5 {[%clk 0:01:45]}  Rxf5+ {[%clk 0:01:04]} 42. Kxf5 {[%clk 0:01:45]}  b5 {[%clk 0:01:03]} 43. Ke5 {[%clk 0:01:45]}  b4 {[%clk 0:01:01]} 44. Nd4 {[%clk 0:01:42]}  Rc3 {[%clk 0:00:59]} 45. Nb5 {[%clk 0:01:38]}  Kd7 {[%clk 0:00:56]} 46. Kd4 {[%clk 0:01:36]}  Rg3 {[%clk 0:00:54]} 47. e5 {[%clk 0:00:41]}  b3 {[%clk 0:00:53]} 48. e6+ {[%clk 0:00:39]}  Ke7 {[%clk 0:00:53]} 49. Ke5 {[%clk 0:00:39]}  Re3+ {[%clk 0:00:48]} 50. Kf5 {[%clk 0:00:39]}  b2 {[%clk 0:00:22]} 51. d6+ {[%clk 0:00:40]}  Kd8 {[%clk 0:00:20]} 52. Nd4 {[%clk 0:00:36]}  b1=Q+ {[%clk 0:00:20]} 53. Kf6 {[%clk 0:00:37]}  Qf1+ {[%clk 0:00:18]} 0-1


[Site "https://www.chess.com"]